[Event "*** Titled Tuesday Blitz"]
[Site "Chess.com"]
[Date "2021.02.09"]
[Round "1"]
[White "Dii210"]
[Black "dukicz123"]
[Result "0-1"]
[WhiteElo "2247"]
[BlackElo "2560"]
[TimeControl "180+1"]
[EndTime "10:07:51 PST"]
[Termination "dukicz123 won by resignation"]

1. e4 {[%clk 0:02:58.8]} 1... e5 {[%clk 0:02:59.8]} 2. Nf3 {[%clk 0:02:58.4]}
2... Nc6 {[%clk 0:03:00.5]} 3. Bb5 {[%clk 0:02:58.3]} 3... a6 {[%clk 0:03:00.8]}
4. Ba4 {[%clk 0:02:58.5]} 4... Nf6 {[%clk 0:03:01.2]} 5. O-O {[%clk 0:02:58]}
5... Be7 {[%clk 0:03:01.9]} 6. Re1 {[%clk 0:02:56.7]} 6... b5 {[%clk 0:03:02.3]}
7. Bb3 {[%clk 0:02:56.6]} 7... O-O {[%clk 0:03:03.2]} 8. c3 {[%clk 0:02:53.2]}
8... d5 {[%clk 0:03:03.2]} 9. exd5 {[%clk 0:02:53.3]} 9... Nxd5 {[%clk
0:03:04.1]} 10. Nxe5 {[%clk 0:02:53.6]} 10... Nxe5 {[%clk 0:03:05]} 11. Rxe5
{[%clk 0:02:54.4]} 11... c6 {[%clk 0:03:05.5]} 12. d4 {[%clk 0:02:54.9]} 12...
Bd6 {[%clk 0:03:05.8]} 13. Re1 {[%clk 0:02:55]} 13... Qh4 {[%clk 0:03:05.7]} 14.
g3 {[%clk 0:02:54.7]} 14... Qh3 {[%clk 0:03:06.1]} 15. Qd3 {[%clk 0:02:54.7]}
15... Bf5 {[%clk 0:02:43.8]} 16. Qf1 {[%clk 0:02:54.1]} 16... Qh5 {[%clk
0:02:44.4]} 17. Be3 {[%clk 0:02:49.6]} 17... Rae8 {[%clk 0:02:43.5]} 18. Nd2
{[%clk 0:02:49.2]} 18... Qg6 {[%clk 0:02:41.2]} 19. a4 {[%clk 0:02:33.5]} 19...
h5 {[%clk 0:02:39.2]} 20. Bxd5 {[%clk 0:02:32.7]} 20... cxd5 {[%clk 0:02:38.7]}
21. Nf3 {[%clk 0:02:31.6]} 21... Bd3 {[%clk 0:02:19.1]} 22. Qh3 {[%clk
0:02:21.7]} 22... Bf5 {[%clk 0:02:16.8]} 23. Qf1 {[%clk 0:02:10.9]} 23... Be4
{[%clk 0:01:58.2]} 24. Nh4 {[%clk 0:02:08]} 24... Qf6 {[%clk 0:01:58.3]} 25. f3
{[%clk 0:02:04.3]} 25... Bh7 {[%clk 0:01:50.7]} 26. axb5 {[%clk 0:02:03.5]}
26... axb5 {[%clk 0:01:51.3]} 27. Ra6 {[%clk 0:02:02.8]} 27... Re6 {[%clk
0:01:42.1]} 28. Bg5 {[%clk 0:01:36.2]} 28... Qxg5 {[%clk 0:01:33.1]} 29. Rxe6
{[%clk 0:01:35.5]} 29... Bxg3 {[%clk 0:00:54.3]} 30. Re2 {[%clk 0:01:24.3]}
30... Bxh4+ {[%clk 0:00:47.6]} 31. Rg2 {[%clk 0:01:19.8]} 31... Qe3+ {[%clk
0:00:40.4]} 32. Kh1 {[%clk 0:01:19.4]} 32... Re8 {[%clk 0:00:41]} 33. Ra1 {[%clk
0:01:14.4]} 33... Bd3 {[%clk 0:00:40.9]} 34. Qg1 {[%clk 0:01:05.5]} 34... Qxf3
{[%clk 0:00:39]} 35. h3 {[%clk 0:00:49.5]} 35... Be4 {[%clk 0:00:31.2]} 36. Kh2
{[%clk 0:00:39.2]} 36... Qxg2+ {[%clk 0:00:31.3]} 37. Qxg2 {[%clk 0:00:40.1]}
37... Bxg2 {[%clk 0:00:32]} 38. Kxg2 {[%clk 0:00:40.9]} 38... Re2+ {[%clk
0:00:32.5]} 39. Kf3 {[%clk 0:00:41.3]} 39... Rxb2 {[%clk 0:00:33.2]} 40. Ra8+
{[%clk 0:00:40.5]} 40... Kh7 {[%clk 0:00:32.9]} 41. Rd8 {[%clk 0:00:40.9]} 41...
Rb3 {[%clk 0:00:30]} 42. Rxd5 {[%clk 0:00:40.9]} 42... Rxc3+ {[%clk 0:00:30.2]}
43. Kf4 {[%clk 0:00:40.3]} 43... g5+ {[%clk 0:00:20.7]} 44. Kf5 {[%clk
0:00:37.9]} 44... b4 {[%clk 0:00:20.1]} 45. Rd7 {[%clk 0:00:36.7]} 45... Kg7
{[%clk 0:00:19.9]} 46. Rb7 {[%clk 0:00:35.7]} 46... b3 {[%clk 0:00:20]} 47. d5
{[%clk 0:00:35.7]} 47... Bg3 {[%clk 0:00:17.8]} 48. Kxg5 {[%clk 0:00:33.8]}
48... Be5 {[%clk 0:00:18]} 49. Kf5 {[%clk 0:00:30.4]} 49... Bd6 {[%clk
0:00:15.8]} 50. Rb6 {[%clk 0:00:27.5]} 50... Bf8 {[%clk 0:00:15.9]} 51. Rb7
{[%clk 0:00:26.8]} 51... Rxh3 {[%clk 0:00:14.7]} 52. Kg5 {[%clk 0:00:24.4]}
52... Rd3 {[%clk 0:00:14.5]} 53. Rb5 {[%clk 0:00:22.9]} 53... Ba3 {[%clk
0:00:12.3]} 54. Kxh5 {[%clk 0:00:20.4]} 54... b2 {[%clk 0:00:12.8]} 55. d6
{[%clk 0:00:20.4]} 55... Rxd6 {[%clk 0:00:12.4]} 56. Kg4 {[%clk 0:00:20.4]}
56... Rd1 {[%clk 0:00:12.3]} 57. Kf3 {[%clk 0:00:20.5]} 57... b1=Q {[%clk
0:00:12.5]} 58. Rxb1 {[%clk 0:00:21.4]} 58... Rxb1 {[%clk 0:00:13.1]} 0-1

[Event "*** Titled Tuesday Blitz"]
[Site "Chess.com"]
[Date "2021.02.09"]
[Round "1"]
[White "canary2016"]
[Black "J36225"]
[Result "0-1"]
[WhiteElo "2000"]
[BlackElo "2477"]
[TimeControl "180+1"]
[EndTime "10:07:53 PST"]
[Termination "J36225 won by checkmate"]

1. d4 {[%clk 0:03:00.9]} 1... Nf6 {[%clk 0:02:55.1]} 2. c4 {[%clk 0:02:59.2]}
2... e6 {[%clk 0:02:54.5]} 3. g3 {[%clk 0:02:57.4]} 3... d5 {[%clk 0:02:53.8]}
4. Bg2 {[%clk 0:02:57.4]} 4... Be7 {[%clk 0:02:52.7]} 5. Nf3 {[%clk 0:02:57.2]}
5... dxc4 {[%clk 0:02:50.9]} 6. O-O {[%clk 0:02:56.9]} 6... a6 {[%clk
0:02:50.1]} 7. a4 {[%clk 0:02:55.9]} 7... Nc6 {[%clk 0:02:48]} 8. e3 {[%clk
0:02:46.6]} 8... O-O {[%clk 0:02:45.1]} 9. Nbd2 {[%clk 0:02:46.4]} 9... Na5
{[%clk 0:02:29.5]} 10. Qc2 {[%clk 0:02:44.1]} 10... Bd7 {[%clk 0:02:15.5]} 11.
Nxc4 {[%clk 0:02:40.2]} 11... Nxc4 {[%clk 0:02:15.1]} 12. Qxc4 {[%clk
0:02:39.5]} 12... Bc6 {[%clk 0:02:15]} 13. Bd2 {[%clk 0:02:31.3]} 13... Bd5
{[%clk 0:02:11.9]} 14. Qc2 {[%clk 0:02:27.7]} 14... b5 {[%clk 0:02:07.4]} 15.
axb5 {[%clk 0:02:24]} 15... axb5 {[%clk 0:02:08.3]} 16. Rfc1 {[%clk 0:02:23.6]}
16... Rxa1 {[%clk 0:02:01.7]} 17. Rxa1 {[%clk 0:02:23]} 17... Qb8 {[%clk
0:01:48.5]} 18. Rc1 {[%clk 0:02:13.8]} 18... Rc8 {[%clk 0:01:42.4]} 19. Ba5
{[%clk 0:02:12.5]} 19... Qb7 {[%clk 0:01:40.6]} 20. Nh4 {[%clk 0:02:08.1]} 20...
Bxg2 {[%clk 0:01:40.1]} 21. Nxg2 {[%clk 0:02:08]} 21... c5 {[%clk 0:01:40.1]}
22. dxc5 {[%clk 0:02:05.1]} 22... Rxc5 {[%clk 0:01:39.3]} 23. Qd2 {[%clk
0:02:04.6]} 23... Rxc1+ {[%clk 0:01:36.2]} 24. Qxc1 {[%clk 0:02:04.3]} 24... h6
{[%clk 0:01:25.9]} 25. Qc7 {[%clk 0:01:50.6]} 25... Qxc7 {[%clk 0:00:59.5]} 26.
Bxc7 {[%clk 0:01:49.2]} 26... Nd5 {[%clk 0:01:00.4]} 27. Be5 {[%clk 0:01:46.9]}
27... f6 {[%clk 0:00:59.4]} 28. Bc3 {[%clk 0:01:21.6]} 28... e5 {[%clk
0:00:57.5]} 29. Kf1 {[%clk 0:01:16.7]} 29... Kf7 {[%clk 0:00:53.8]} 30. Ke2
{[%clk 0:01:16.3]} 30... Ke6 {[%clk 0:00:53.9]} 31. Kd3 {[%clk 0:01:14.9]} 31...
Bc5 {[%clk 0:00:43.7]} 32. Ne1 {[%clk 0:01:11.3]} 32... f5 {[%clk 0:00:42.7]}
33. Nc2 {[%clk 0:01:04.8]} 33... e4+ {[%clk 0:00:42.6]} 34. Ke2 {[%clk
0:01:04.1]} 34... Nxc3+ {[%clk 0:00:40.8]} 35. bxc3 {[%clk 0:01:04]} 35... Kd5
{[%clk 0:00:40.7]} 36. Kd2 {[%clk 0:00:48.9]} 36... g5 {[%clk 0:00:39.5]} 37.
Ne1 {[%clk 0:00:35.7]} 37... Bb6 {[%clk 0:00:21.6]} 38. Ng2 {[%clk 0:00:30.6]}
38... Ba5 {[%clk 0:00:21]} 39. h4 {[%clk 0:00:16.5]} 39... Kc4 {[%clk
0:00:20.8]} 40. hxg5 {[%clk 0:00:16.2]} 40... hxg5 {[%clk 0:00:21.7]} 41. Kc2
{[%clk 0:00:07.9]} 41... Bxc3 {[%clk 0:00:21.1]} 42. Kc1 {[%clk 0:00:07.8]}
42... b4 {[%clk 0:00:19.9]} 43. Kc2 {[%clk 0:00:07.8]} 43... b3+ {[%clk
0:00:19.9]} 44. Kc1 {[%clk 0:00:07.9]} 44... Kd3 {[%clk 0:00:20.5]} 45. f4
{[%clk 0:00:06.3]} 45... g4 {[%clk 0:00:20.2]} 46. Nh4 {[%clk 0:00:06.2]} 46...
Kxe3 {[%clk 0:00:18]} 47. Nxf5+ {[%clk 0:00:06.3]} 47... Kf3 {[%clk 0:00:18.2]}
48. Kb1 {[%clk 0:00:06.2]} 48... e3 {[%clk 0:00:17.6]} 49. Nh4+ {[%clk
0:00:04.8]} 49... Kxg3 {[%clk 0:00:16.4]} 50. Nf5+ {[%clk 0:00:05.2]} 50... Kxf4
{[%clk 0:00:15.9]} 51. Nd6 {[%clk 0:00:04.3]} 51... e2 {[%clk 0:00:15.5]} 52.
Nf7 {[%clk 0:00:04.7]} 52... e1=Q# {[%clk 0:00:14.8]} 0-1

[Event "*** Titled Tuesday Blitz"]
[Site "Chess.com"]
[Date "2021.02.09"]
[Round "1"]
[White "AlexOstrovskiy"]
[Black "korkmaz16"]
[Result "1/2-1/2"]
[WhiteElo "2763"]
[BlackElo "2411"]
[TimeControl "180+1"]
[EndTime "10:07:54 PST"]
[Termination "Game drawn by repetition"]

1. d4 {[%clk 0:03:00.4]} 1... d5 {[%clk 0:02:59]} 2. Bf4 {[%clk 0:03:00.8]} 2...
Nf6 {[%clk 0:02:58.2]} 3. e3 {[%clk 0:03:00.8]} 3... c5 {[%clk 0:02:58.2]} 4. c3
{[%clk 0:03:00.6]} 4... Nc6 {[%clk 0:02:57.9]} 5. Nd2 {[%clk 0:02:59.5]} 5...
Qb6 {[%clk 0:02:50.8]} 6. Qb3 {[%clk 0:02:57.1]} 6... c4 {[%clk 0:02:50.6]} 7.
Qc2 {[%clk 0:02:55.1]} 7... Bg4 {[%clk 0:02:50]} 8. Be2 {[%clk 0:02:52.9]} 8...
Bxe2 {[%clk 0:02:48.8]} 9. Nxe2 {[%clk 0:02:53.8]} 9... e6 {[%clk 0:02:46.7]}
10. h3 {[%clk 0:02:50.2]} 10... Qd8 {[%clk 0:02:44.9]} 11. O-O {[%clk
0:02:49.9]} 11... Bd6 {[%clk 0:02:44]} 12. Bxd6 {[%clk 0:02:49.8]} 12... Qxd6
{[%clk 0:02:44]} 13. e4 {[%clk 0:02:50.7]} 13... Nxe4 {[%clk 0:02:39.1]} 14.
Nxe4 {[%clk 0:02:51.6]} 14... dxe4 {[%clk 0:02:39.8]} 15. Qxe4 {[%clk
0:02:50.3]} 15... O-O {[%clk 0:02:37.1]} 16. Ng3 {[%clk 0:02:44.3]} 16... Qd5
{[%clk 0:02:32.2]} 17. Qg4 {[%clk 0:02:42.9]} 17... f5 {[%clk 0:02:10.9]} 18.
Qd1 {[%clk 0:02:02.7]} 18... e5 {[%clk 0:02:10.3]} 19. dxe5 {[%clk 0:02:02.8]}
19... Qxe5 {[%clk 0:01:59.7]} 20. Re1 {[%clk 0:01:59.9]} 20... Qc5 {[%clk
0:01:58.6]} 21. Qd7 {[%clk 0:01:52.5]} 21... Rf7 {[%clk 0:01:54.3]} 22. Qe6
{[%clk 0:01:52.7]} 22... g6 {[%clk 0:01:52]} 23. Rad1 {[%clk 0:01:51.2]} 23...
Kg7 {[%clk 0:01:24.5]} 24. h4 {[%clk 0:01:32.5]} 24... Re7 {[%clk 0:01:12.8]}
25. Rd7 {[%clk 0:01:24.9]} 25... Re8 {[%clk 0:00:40.5]} 26. Red1 {[%clk
0:00:41.8]} 26... Rxd7 {[%clk 0:00:34.3]} 27. Rxd7+ {[%clk 0:00:37.4]} 27... Re7
{[%clk 0:00:34.7]} 28. Rxe7+ {[%clk 0:00:25.6]} 28... Qxe7 {[%clk 0:00:34]} 29.
Qxc4 {[%clk 0:00:25.6]} 29... Qe1+ {[%clk 0:00:26.2]} 30. Qf1 {[%clk 0:00:25.4]}
30... Qd2 {[%clk 0:00:25.6]} 31. Qe2 {[%clk 0:00:23]} 31... Qc1+ {[%clk
0:00:25.8]} 32. Kh2 {[%clk 0:00:22.5]} 32... Qf4 {[%clk 0:00:26]} 33. h5 {[%clk
0:00:17.8]} 33... Ne5 {[%clk 0:00:24.8]} 34. hxg6 {[%clk 0:00:09]} 34... hxg6
{[%clk 0:00:24.8]} 35. Kg1 {[%clk 0:00:08.8]} 35... Qc1+ {[%clk 0:00:23.7]} 36.
Nf1 {[%clk 0:00:09.1]} 36... Kf6 {[%clk 0:00:22.6]} 37. a4 {[%clk 0:00:05.3]}
37... a6 {[%clk 0:00:21.8]} 38. a5 {[%clk 0:00:05.4]} 38... Qa1 {[%clk
0:00:20.9]} 39. f4 {[%clk 0:00:03.5]} 39... Ng4 {[%clk 0:00:19.9]} 40. Qd2
{[%clk 0:00:03.3]} 40... Qxa5 {[%clk 0:00:19.2]} 41. Qd6+ {[%clk 0:00:03.5]}
41... Kf7 {[%clk 0:00:19.4]} 42. b4 {[%clk 0:00:03.7]} 42... Qb5 {[%clk
0:00:18.6]} 43. Qc7+ {[%clk 0:00:03.6]} 43... Ke6 {[%clk 0:00:18.6]} 44. Qc8+
{[%clk 0:00:03.6]} 44... Kd5 {[%clk 0:00:18.9]} 45. Qg8+ {[%clk 0:00:03]} 45...
Ke4 {[%clk 0:00:18.9]} 46. Qxg6 {[%clk 0:00:03.5]} 46... Kxf4 {[%clk 0:00:18.9]}
47. Qd6+ {[%clk 0:00:03.3]} 47... Kg5 {[%clk 0:00:18.5]} 48. Qd2+ {[%clk
0:00:03.6]} 48... f4 {[%clk 0:00:18.4]} 49. Qd7 {[%clk 0:00:02.2]} 49... Qb6+
{[%clk 0:00:18.4]} 50. Kh1 {[%clk 0:00:01.9]} 50... Qh6+ {[%clk 0:00:18.7]} 51.
Kg1 {[%clk 0:00:01.4]} 51... Qb6+ {[%clk 0:00:18.8]} 52. Kh1 {[%clk 0:00:02]}
52... Nf2+ {[%clk 0:00:18.3]} 53. Kh2 {[%clk 0:00:02.3]} 53... Ng4+ {[%clk
0:00:17.6]} 54. Kh1 {[%clk 0:00:02.5]} 1/2-1/2

[Event "*** Titled Tuesday Blitz"]
[Site "Chess.com"]
[Date "2021.02.09"]
[Round "1"]
[White "PavelChernomordik"]
[Black "DanielDardha2005"]
[Result "0-1"]
[WhiteElo "2376"]
[BlackElo "2713"]
[TimeControl "180+1"]
[EndTime "10:07:55 PST"]
[Termination "DanielDardha2005 won by resignation"]

1. e4 {[%clk 0:03:00.9]} 1... c5 {[%clk 0:02:58.1]} 2. Nc3 {[%clk 0:02:57.9]}
2... Nc6 {[%clk 0:02:57.7]} 3. Bb5 {[%clk 0:02:55.5]} 3... Nd4 {[%clk
0:02:49.6]} 4. Bc4 {[%clk 0:02:54.7]} 4... e6 {[%clk 0:02:48.9]} 5. Nge2 {[%clk
0:02:54.1]} 5... a6 {[%clk 0:02:45.6]} 6. Nxd4 {[%clk 0:02:50.4]} 6... cxd4
{[%clk 0:02:46.5]} 7. Ne2 {[%clk 0:02:50.6]} 7... Bc5 {[%clk 0:02:45]} 8. d3
{[%clk 0:02:50]} 8... Nf6 {[%clk 0:02:43.4]} 9. Ng3 {[%clk 0:02:48.3]} 9... O-O
{[%clk 0:02:34.8]} 10. O-O {[%clk 0:02:45.1]} 10... d5 {[%clk 0:02:30.5]} 11.
Bb3 {[%clk 0:02:42.8]} 11... dxe4 {[%clk 0:02:25.1]} 12. dxe4 {[%clk 0:02:40.1]}
12... e5 {[%clk 0:02:20]} 13. Kh1 {[%clk 0:02:28.6]} 13... h6 {[%clk 0:02:11.5]}
14. Qd3 {[%clk 0:02:17.5]} 14... b5 {[%clk 0:02:03.3]} 15. f4 {[%clk 0:02:16.1]}
15... exf4 {[%clk 0:01:56.8]} 16. Bxf4 {[%clk 0:02:14.1]} 16... Bb7 {[%clk
0:01:51.4]} 17. Rae1 {[%clk 0:02:12.2]} 17... Qb6 {[%clk 0:01:41.8]} 18. Nf5
{[%clk 0:02:07.9]} 18... Rae8 {[%clk 0:01:41.4]} 19. Qg3 {[%clk 0:02:01]} 19...
Nh5 {[%clk 0:01:35.8]} 20. Qg4 {[%clk 0:01:57.7]} 20... g6 {[%clk 0:01:36.3]}
21. Bd6 {[%clk 0:01:42.8]} 21... Kh7 {[%clk 0:01:26]} 22. Bxf8 {[%clk
0:01:39.2]} 22... Rxf8 {[%clk 0:01:26.9]} 23. Nh4 {[%clk 0:01:24.2]} 23... Nf6
{[%clk 0:01:06.9]} 24. Qf3 {[%clk 0:01:19.3]} 24... Be7 {[%clk 0:01:00.3]} 25.
Qg3 {[%clk 0:01:09.7]} 25... Nxe4 {[%clk 0:00:54.9]} 26. Rxe4 {[%clk 0:01:07.8]}
26... Bxe4 {[%clk 0:00:55.8]} 27. Bxf7 {[%clk 0:01:06.3]} 27... Bxh4 {[%clk
0:00:20.6]} 28. Qxh4 {[%clk 0:01:02.7]} 28... Bxg2+ {[%clk 0:00:20.6]} 29. Kxg2
{[%clk 0:00:59.5]} 29... Qb7+ {[%clk 0:00:21.1]} 30. Kg1 {[%clk 0:00:57.3]}
30... Rxf7 {[%clk 0:00:21.7]} 31. Qxd4 {[%clk 0:00:55.7]} 31... Rxf1+ {[%clk
0:00:20.7]} 32. Kxf1 {[%clk 0:00:55.2]} 32... Qf7+ {[%clk 0:00:20.2]} 33. Ke2
{[%clk 0:00:54.5]} 33... Qxa2 {[%clk 0:00:20.4]} 34. Qd7+ {[%clk 0:00:52.3]}
34... Kg8 {[%clk 0:00:19.3]} 35. Qe8+ {[%clk 0:00:49.8]} 35... Kg7 {[%clk
0:00:19.7]} 36. Qe5+ {[%clk 0:00:47.6]} 36... Kf7 {[%clk 0:00:19.9]} 37. Qc7+
{[%clk 0:00:46.7]} 37... Ke6 {[%clk 0:00:20]} 38. Qc6+ {[%clk 0:00:45.8]} 38...
Kf5 {[%clk 0:00:18.2]} 39. Qf3+ {[%clk 0:00:44.6]} 39... Ke5 {[%clk 0:00:18.5]}
40. Qe3+ {[%clk 0:00:43.7]} 40... Kd5 {[%clk 0:00:18.3]} 41. Qxh6 {[%clk
0:00:42.4]} 41... Qxb2 {[%clk 0:00:17.2]} 42. Qxg6 {[%clk 0:00:42.1]} 42... a5
{[%clk 0:00:16.6]} 43. Qf7+ {[%clk 0:00:40.9]} 43... Kc5 {[%clk 0:00:16.5]} 44.
Qe7+ {[%clk 0:00:40.3]} 44... Kc4 {[%clk 0:00:16.9]} 45. Qe6+ {[%clk 0:00:37.3]}
45... Kc3 {[%clk 0:00:12.2]} 46. Qc6+ {[%clk 0:00:36.7]} 46... Kb4 {[%clk
0:00:12.4]} 47. h4 {[%clk 0:00:34.7]} 47... Qe5+ {[%clk 0:00:11]} 48. Kf3 {[%clk
0:00:34.3]} 48... a4 {[%clk 0:00:10.1]} 49. Kg4 {[%clk 0:00:33.4]} 49... a3
{[%clk 0:00:09.8]} 50. c3+ {[%clk 0:00:30]} 50... Qxc3 {[%clk 0:00:08.1]} 51.
Qxc3+ {[%clk 0:00:28.9]} 51... Kxc3 {[%clk 0:00:09]} 52. h5 {[%clk 0:00:29.5]}
52... a2 {[%clk 0:00:09.4]} 53. h6 {[%clk 0:00:29.6]} 53... a1=Q {[%clk
0:00:09.6]} 54. h7 {[%clk 0:00:29.5]} 54... Kc4 {[%clk 0:00:10.5]} 0-1

[Event "*** Titled Tuesday Blitz"]
[Site "Chess.com"]
[Date "2021.02.09"]
[Round "1"]
[White "Abdimalik_Abdisalimov"]
[Black "Meri-Arabidze"]
[Result "0-1"]
[WhiteElo "2295"]
[BlackElo "2602"]
[TimeControl "180+1"]
[EndTime "10:07:55 PST"]
[Termination "Meri-Arabidze won by checkmate"]

1. d4 {[%clk 0:03:00.2]} 1... d5 {[%clk 0:02:59.8]} 2. c4 {[%clk 0:02:59.8]}
2... e6 {[%clk 0:03:00.2]} 3. Nf3 {[%clk 0:02:58.1]} 3... Nf6 {[%clk 0:03:00.7]}
4. g3 {[%clk 0:02:58]} 4... Bb4+ {[%clk 0:03:00.1]} 5. Bd2 {[%clk 0:02:56.7]}
5... Be7 {[%clk 0:03:00.6]} 6. Bg2 {[%clk 0:02:55.6]} 6... O-O {[%clk
0:03:01.3]} 7. O-O {[%clk 0:02:49.4]} 7... Nbd7 {[%clk 0:03:01.9]} 8. b3 {[%clk
0:02:17.9]} 8... dxc4 {[%clk 0:03:00.8]} 9. bxc4 {[%clk 0:02:16.2]} 9... c5
{[%clk 0:03:01.4]} 10. e3 {[%clk 0:02:13]} 10... Rb8 {[%clk 0:02:55.6]} 11. Qc2
{[%clk 0:01:58.9]} 11... b6 {[%clk 0:02:55.2]} 12. Nc3 {[%clk 0:01:57]} 12...
Bb7 {[%clk 0:02:55.2]} 13. Rfd1 {[%clk 0:01:53]} 13... Rc8 {[%clk 0:02:55.3]}
14. d5 {[%clk 0:01:36.1]} 14... e5 {[%clk 0:02:50.6]} 15. e4 {[%clk 0:01:33]}
15... Ne8 {[%clk 0:02:47.2]} 16. Ne1 {[%clk 0:01:17.6]} 16... Nd6 {[%clk
0:02:46.7]} 17. Nb5 {[%clk 0:01:13.6]} 17... Nxb5 {[%clk 0:02:39]} 18. cxb5
{[%clk 0:01:14.5]} 18... Bd6 {[%clk 0:02:34.7]} 19. Nd3 {[%clk 0:01:08.8]} 19...
c4 {[%clk 0:02:33.8]} 20. Nb2 {[%clk 0:01:05.5]} 20... a6 {[%clk 0:02:18.6]} 21.
a4 {[%clk 0:00:52.9]} 21... c3 {[%clk 0:01:41.4]} 22. Bxc3 {[%clk 0:00:52]}
22... Bb4 {[%clk 0:01:39.2]} 23. Rd3 {[%clk 0:00:48.4]} 23... Rc5 {[%clk
0:01:36.6]} 24. Qd2 {[%clk 0:00:38.7]} 24... Bxc3 {[%clk 0:01:35.8]} 25. Rxc3
{[%clk 0:00:39.6]} 25... axb5 {[%clk 0:01:35.8]} 26. Rxc5 {[%clk 0:00:37]} 26...
Nxc5 {[%clk 0:01:35.4]} 27. axb5 {[%clk 0:00:37.1]} 27... Nb3 {[%clk 0:01:35.6]}
28. Qd1 {[%clk 0:00:35.6]} 28... Nxa1 {[%clk 0:01:35.8]} 29. Qxa1 {[%clk
0:00:36.5]} 29... Qc7 {[%clk 0:01:32.9]} 30. Bf1 {[%clk 0:00:35.7]} 30... f5
{[%clk 0:01:30.1]} 31. Qb1 {[%clk 0:00:29.8]} 31... fxe4 {[%clk 0:01:23.6]} 32.
Qxe4 {[%clk 0:00:30.7]} 32... Qc5 {[%clk 0:01:23.5]} 33. Nd3 {[%clk 0:00:28.9]}
33... Qxd5 {[%clk 0:01:23]} 34. Qxd5+ {[%clk 0:00:27.9]} 34... Bxd5 {[%clk
0:01:23.9]} 35. Nxe5 {[%clk 0:00:28.4]} 35... Ra8 {[%clk 0:01:21.3]} 36. f4
{[%clk 0:00:22.7]} 36... Ra2 {[%clk 0:01:16.6]} 37. Nd7 {[%clk 0:00:21.1]} 37...
Rb2 {[%clk 0:00:50.1]} 38. Nxb6 {[%clk 0:00:21.2]} 38... Be4 {[%clk 0:00:42.8]}
39. Nd7 {[%clk 0:00:20.2]} 39... Kf7 {[%clk 0:00:37.8]} 40. Ne5+ {[%clk
0:00:20.2]} 40... Kf6 {[%clk 0:00:35.8]} 41. Nd7+ {[%clk 0:00:18.6]} 41... Kf5
{[%clk 0:00:30.9]} 42. Nc5 {[%clk 0:00:17.7]} 42... Bf3 {[%clk 0:00:26.8]} 43.
Nd7 {[%clk 0:00:14.3]} 43... Ke6 {[%clk 0:00:18]} 44. Ne5 {[%clk 0:00:13.1]}
44... Be4 {[%clk 0:00:16.8]} 45. Bc4+ {[%clk 0:00:09.9]} 45... Kd6 {[%clk
0:00:16.2]} 46. Kf1 {[%clk 0:00:09.8]} 46... Kc5 {[%clk 0:00:15.9]} 47. Be2
{[%clk 0:00:09.2]} 47... Kd4 {[%clk 0:00:14.1]} 48. Ke1 {[%clk 0:00:08.8]} 48...
Ke3 {[%clk 0:00:13.8]} 49. Bf1 {[%clk 0:00:07]} 49... Rb1# {[%clk 0:00:13.1]}
0-1

[Event "*** Titled Tuesday Blitz"]
[Site "Chess.com"]
[Date "2021.02.09"]
[Round "1"]
[White "StockholmMissile"]
[Black "PawnEatingZombie"]
[Result "1-0"]
[WhiteElo "2496"]
[BlackElo "2110"]
[TimeControl "180+1"]
[EndTime "10:07:56 PST"]
[Termination "StockholmMissile won on time"]

1. c4 {[%clk 0:02:59.6]} 1... e6 {[%clk 0:02:59.5]} 2. Nf3 {[%clk 0:02:59.4]}
2... d5 {[%clk 0:02:59.7]} 3. e3 {[%clk 0:02:59.7]} 3... Nf6 {[%clk 0:02:57]} 4.
Nc3 {[%clk 0:02:59.3]} 4... Bd6 {[%clk 0:02:56.4]} 5. b3 {[%clk 0:02:58.7]} 5...
b6 {[%clk 0:02:56.3]} 6. Bb2 {[%clk 0:02:58.4]} 6... Bb7 {[%clk 0:02:56.4]} 7.
cxd5 {[%clk 0:02:53.3]} 7... exd5 {[%clk 0:02:55.8]} 8. Qc2 {[%clk 0:02:45.6]}
8... a6 {[%clk 0:02:54.1]} 9. d4 {[%clk 0:02:44.4]} 9... O-O {[%clk 0:02:52.8]}
10. Bd3 {[%clk 0:02:44.3]} 10... Nbd7 {[%clk 0:02:42.6]} 11. O-O {[%clk
0:02:41.7]} 11... Qe7 {[%clk 0:02:42.4]} 12. h3 {[%clk 0:02:18.1]} 12... Rac8
{[%clk 0:02:37.6]} 13. Rad1 {[%clk 0:02:16.7]} 13... g6 {[%clk 0:02:35]} 14. Qb1
{[%clk 0:02:12.9]} 14... Ne4 {[%clk 0:02:27.8]} 15. Nd2 {[%clk 0:01:43.7]} 15...
f5 {[%clk 0:02:22]} 16. Rfe1 {[%clk 0:01:43.6]} 16... Rce8 {[%clk 0:02:10.1]}
17. f3 {[%clk 0:01:41.8]} 17... Nxd2 {[%clk 0:01:17.6]} 18. Rxd2 {[%clk
0:01:42.7]} 18... Qg5 {[%clk 0:01:17.4]} 19. f4 {[%clk 0:01:12.3]} 19... Qh6
{[%clk 0:01:14.7]} 20. Rf2 {[%clk 0:00:54.8]} 20... Re7 {[%clk 0:01:13.3]} 21.
Bc1 {[%clk 0:00:50.2]} 21... Rfe8 {[%clk 0:01:12.5]} 22. Bd2 {[%clk 0:00:50.5]}
22... c5 {[%clk 0:01:07.9]} 23. Rff1 {[%clk 0:00:44.5]} 23... Qh4 {[%clk
0:01:05.7]} 24. Qd1 {[%clk 0:00:37]} 24... Qf6 {[%clk 0:01:04.5]} 25. Ne2 {[%clk
0:00:33.2]} 25... Rxe3 {[%clk 0:00:43.3]} 26. Bxe3 {[%clk 0:00:32.6]} 26... Rxe3
{[%clk 0:00:44.2]} 27. dxc5 {[%clk 0:00:24.7]} 27... bxc5 {[%clk 0:00:36.1]} 28.
Nc1 {[%clk 0:00:16.3]} 28... Qd4 {[%clk 0:00:17.2]} 29. Rxe3 {[%clk 0:00:15.3]}
29... Qxe3+ {[%clk 0:00:17.3]} 30. Kh1 {[%clk 0:00:15.5]} 30... d4 {[%clk
0:00:14.7]} 31. Bc4+ {[%clk 0:00:15.7]} 31... Kg7 {[%clk 0:00:13.7]} 32. Qd3
{[%clk 0:00:14.9]} 32... Bxf4 {[%clk 0:00:09.1]} 33. Qxe3 {[%clk 0:00:14.3]}
33... Bxe3 {[%clk 0:00:09.7]} 34. Nd3 {[%clk 0:00:14.1]} 34... Nf6 {[%clk
0:00:08.7]} 35. Nxc5 {[%clk 0:00:13.8]} 35... Bc6 {[%clk 0:00:07.5]} 36. Nxa6
{[%clk 0:00:09.2]} 36... Nh5 {[%clk 0:00:08]} 37. Rd1 {[%clk 0:00:05.5]} 37...
Ng3+ {[%clk 0:00:07.2]} 38. Kh2 {[%clk 0:00:06.1]} 38... Ne4 {[%clk 0:00:07.1]}
39. Nb4 {[%clk 0:00:04]} 39... Bf4+ {[%clk 0:00:06.6]} 40. Kg1 {[%clk
0:00:04.3]} 40... Bb7 {[%clk 0:00:06.5]} 41. Bd5 {[%clk 0:00:03.8]} 41... Be3+
{[%clk 0:00:06.2]} 42. Kh2 {[%clk 0:00:03.8]} 42... Bc8 {[%clk 0:00:05.4]} 43.
Bxe4 {[%clk 0:00:03.6]} 43... fxe4 {[%clk 0:00:05.4]} 44. Nc2 {[%clk 0:00:03.9]}
44... Bf2 {[%clk 0:00:04.7]} 45. Nxd4 {[%clk 0:00:03.9]} 45... e3 {[%clk
0:00:04.6]} 46. Rc1 {[%clk 0:00:03.2]} 46... Kh6 {[%clk 0:00:01.2]} 47. Ne2
{[%clk 0:00:03.3]} 47... Bf5 {[%clk 0:00:01]} 48. a4 {[%clk 0:00:02.9]} 48...
Bd3 {[%clk 0:00:01.2]} 49. Nf4 {[%clk 0:00:02.9]} 1-0